Cogmind - Beta 15 @@@ ROGUE MODE // 2025.06.22 @ 10:06:53 // AFD2020/Player2 Player: Demo Result: Core destroyed Performance ------------- Evolutions (0) 0 Regions Visited (2) 400 Robots Destroyed (17) 85 Value Destroyed (235) 235 Prototype IDs (0) 0 Alien Tech Used (0) 0 Bonus (-59) -59 TOTAL SCORE: 661 Bonus ------- Follower Combat Kills 50 Friendly Fire -109 Cogmind --------- Core Integrity 0/250 Matter 161/300 Energy 50/125 System Corruption 1% Temperature Warm (181) Movement Treading (240) Ox1 Location -10/Mines Parts ------- > --- POWER (1) -------- Light Ion Engine > --- PROPULSION (2) --- Light Treads Compact Wheel > --- UTILITY (2) ------ Large Storage Unit Hardened Light Armor Plating > --- WEAPON (2) ------- Spread Laser Spread Laser > --- INVENTORY (15) --- Wheel Compact Wheel Light Armor Plating Light Armor Plating Light Armor Plating Hardened Light Armor Plating Hardened Light Armor Plating Hardened Light Armor Plating Hacking Suite EM Pulse Gun Spread Laser EMP Blaster EMP Blaster Grenade Launcher Peak State ------------ > --- POWER ------------ Light Ion Engine > --- PROPULSION ------- Light Treads Compact Wheel > --- UTILITY ---------- Large Storage Unit Hardened Light Armor Plating > --- WEAPON ----------- Spread Laser Spread Laser > --- INVENTORY -------- Wheel Compact Wheel Light Armor Plating Light Armor Plating Hardened Light Armor Plating Hardened Light Armor Plating Hardened Light Armor Plating EM Pulse Gun Spread Laser EMP Blaster EMP Blaster EMP Blaster Grenade Launcher [Rating: 12] Favorites ----------- Power Light Ion Engine Engine Light Ion Engine Propulsion Compact Wheel Treads Light Treads Wheel Compact Wheel Utility Hardened Light Armor Plating Device Seismic Detector Storage Small Storage Unit Protection Hardened Light Armor Plating Weapon Light Assault Rifle Energy Gun Spread Laser Ballistic Gun Light Assault Rifle Launcher EMP Blaster Build | -11 -10 -10 ------- Run | Yrd Mat Min Slots Evolved . | . . . Power . | . . . Propulsion . | . . . Utility . | . . . Weapon . | . . . Parts Attached 15 | 7 7 1 Power 1 | 1 . . Engine 1 | 1 . . Core . | . . . Reactor . | . . . Propulsion 2 | 2 . . Treads 1 | 1 . . Leg . | . . . Wheel 1 | 1 . . Hover . | . . . Flight . | . . . Utility 5 | 2 3 . Device 1 | 1 . . Storage 3 | 1 2 . Processor . | . . . Hackware . | . . . Protection 1 | . 1 . Artifact . | . . . Weapon 7 | 2 4 1 Energy Gun 3 | . 3 . Energy Cannon . | . . . Ballistic Gun 2 | 2 . . Ballistic Cannon . | . . . Launcher 2 | . 1 1 Special Weapon . | . . . Impact Weapon . | . . . Slashing Weapon . | . . . Piercing Weapon . | . . . Special Melee Weapon . | . . . Unidentified Prototypes . | . . . Parts Lost . | . . . Power . | . . . Propulsion . | . . . Utility . | . . . Weapon . | . . . Highest Loss Streak . | . . . To Critical Strikes . | . . . Average Backups 9 | 2 9 14 Power . | . . . Propulsion 1 | 1 1 2 Utility 3 | . 3 7 Weapon 3 | . 3 5 Tool/Special . | . . . Unused Backups 20 | 1 7 12 Power . | . . . Propulsion 6 | 1 3 2 Utility 11 | . 4 7 Weapon 3 | . . 3 Tool/Special . | . . . Average Slot Usage (%) 99 | . 99 100 Engine 14 | . 14 14 Treads 14 | . 14 14 Wheel 14 | . 14 14 Device 5 | . 6 . Storage 14 | . 14 14 Protection 8 | . 7 14 Energy Gun 16 | . 14 24 Ballistic Gun 9 | . 12 . Launcher 1 | . . 3 Peak Build Rating 12 | 7 12 12 Average Rating 9 | 5 9 11 On Entrance 6 | . 7 11 Naked Turns . | . . . Heaviest Build 34 | 11 34 34 Greatest Support 16 | 16 16 16 Greatest Overweight (x) 2 | 1 2 2 Average Overweight (x) . | . . 2 Largest Inventory Capacity 15 | 8 15 15 Average Capacity 11 | 7 10 15 Most Carried 15 | 6 15 15 Average Carried 9 | 2 9 14 Final Capacity 15 | 8 15 15 Final Carried 15 | 6 15 14 Class Distribution -------------------- 100% | Mutant Dominant Class ---------------- Mutant | -10/Materials Mutant | -10/Mines Resources | -11 -10 -10 ----------- Run | Yrd Mat Min Matter Collected 414 | 300 114 . Remotely . | . . . Salvage Created 512 | 202 310 . Parts 41 | 24 17 . Haulers Intercepted 2 | . 2 . Recyclers Shooed 2 | . 2 . Parts Field Recycled . | . . . Retrieved Matter . | . . . Parts Self-Destructed . | . . . Prevented . | . . . Kills | -11 -10 -10 ------- Run | Yrd Mat Min Combat Hostiles Destroyed 4 | . 4 . Guns 1 | . 1 . AOE 3 | . 3 . Classes Destroyed 7 | 3 4 . Worker 2 | 2 . . Builder 1 | . 1 . Tunneler 4 | 4 . . Hauler 2 | . 2 . Recycler 3 | 1 2 . Operator 1 | . 1 . Grunt 4 | . 4 . Best Kill Streak 5 | 5 3 . Combat Bots Only 2 | . 2 . Max Kills in Single Turn 3 | 1 3 . Gunslinging . | . . . Exploded 1 | . 1 . Melee . | . . . Uniques/NPCs Destroyed . | . . . Combat | -11 -10 -10 -------- Run | Yrd Mat Min Hostile Shots Fired 17 | . 17 . Missed 6 | . 6 . Hits 11 | . 11 . Projectile 11 | . 11 . Critical Strikes 1 | . 1 . Damage Taken 155 | . 147 8 Core 34 | . 34 . Absorbed by Shields . | . . . Core Remaining (%) 100 | 100 . . Volleys Fired 63 | 15 33 15 Largest 2 | 2 2 2 Hottest 130 | 40 130 130 Shots Fired 105 | 30 55 20 Gun 94 | 30 48 16 Cannon . | . . . Launcher 11 | . 7 4 Special . | . . . Kinetic 67 | 30 37 . Thermal 14 | . 8 6 Explosive 7 | . 7 . Electromagnetic 17 | . 3 14 Robot Hit Streak 15 | 11 15 8 Robot Miss Streak 4 | 2 4 4 Penetration Max . | . . . Secondary Targets . | . . . Shots Hit Robots 76 | 21 40 15 Core Hits 48 | 14 32 2 Critical Kills . | . . . Critical Parts Destroyed . | . . . Critical Strikes . | . . . Melee Attacks . | . . . Impact . | . . . Slashing . | . . . Piercing . | . . . Sneak Attacks . | . . . Combat Hostiles . | . . . Follow-up Attacks . | . . . Damage Inflicted 874 | 181 676 17 Guns 538 | 181 351 6 Cannons . | . . . Explosions 336 | . 325 11 Melee . | . . . Ramming . | . . . Kinetic 399 | 181 218 . Thermal 115 | . 115 . Explosive 325 | . 325 . Electromagnetic 35 | . 18 17 Impact . | . . . Slashing . | . . . Piercing . | . . . Highest Corruption 1 | . . 1 Average Corruption 1 | . . 1 Corruption Purged . | . . . Corruption Blocked . | . . . Overload Shots . | . . . Overflow Damage . | . . . Projectiles . | . . . Explosions . | . . . Melee . | . . . Knockbacks . | . . . Impact . | . . . Kinetic . | . . . Secondary . | . . . Self-Inflicted Damage 5 | . . 5 Shots 1 | . . 1 Rammed . | . . . Targets Rammed . | . . . Kicked . | . . . Crushed . | . . . Highest Temperature 207 | . 207 181 Average Temperature 57 | . 85 35 Received Heat Transfer 100 | . 99 1 Siege Activations . | . . . Martial Activations . | . . . Shielding Activations . | . . . Robots Disrupted . | . . . Combat Hostiles . | . . . Robots Corrupted . | . . . Combat Hostiles . | . . . Parts Fried . | . . . Impact Corruptions . | . . . Robots Melted . | . . . Combat Hostiles . | . . . Parts Melted . | . . . Heat Transferred 150 | . 150 . Parts Sabotaged . | . . . Parts Stolen . | . . . Parts Stripped . | . . . Power Chain Reactions . | . . . Alert | -11 -10 -10 ------- Run | Yrd Mat Min Maximum Alert Level . | . . . Low Security (%) 100 | 100 100 100 Level 1 . | . . . Level 2 . | . . . Level 3 . | . . . Level 4 . | . . . Level 5 . | . . . High Security . | . . . Max Security . | . . . Peak Influence 115 | 15 115 28 Initial 28 | . . 28 Average 30 | 2 42 7 Influence Increases 328 | 35 293 . Destroy 0b10 Robot/C 120 | . 120 . Destroy 0b10 Robot/NC 75 | 35 40 . Destroy Leader 34 | . 34 . Allied During Kill 44 | . 44 . Successful Hack 15 | . 15 . Destroy Structure 25 | . 25 . Lose Combat Pursuer 15 | . 15 . Influence Decreases 328 | 35 219 74 Entered New Map 46 | . . 46 Time Decay 282 | 35 219 28 Squads Dispatched 1 | . 1 . Investigation . | . . . Extermination . | . . . Reinforcement 1 | . 1 . Assault . | . . . Garrison . | . . . Intercept . | . . . Searches Triggered . | . . . Construction Impeded . | . . . Haulers Reinforced . | . . . Active Scanning Responses . | . . . Cargo Convoy Interrupts . | . . . Stealth | -11 -10 -10 --------- Run | Yrd Mat Min Distress Signals 1 | . 1 . Communications Jammed . | . . . Distress Signals . | . . . Times Spotted 10 | . 9 1 Peak Tracking Total 3 | . 3 1 Tactical Retreats 1 | . 1 . Traps | -11 -10 -10 ------- Run | Yrd Mat Min Traps Triggered . | . . . Indirectly . | . . . Trap Hack Attempts . | . . . Triggered . | . . . Disarmed . | . . . Reprogrammed . | . . . Reused . | . . . Traps Extracted . | . . . Installed . | . . . Triggered . | . . . Machines | -11 -10 -10 ---------- Run | Yrd Mat Min Machines Disabled . | . . . Max in Single Turn . | . . . Machines Repaired . | . . . Machines Dismantled . | . . . Machines Sabotaged . | . . . Overloaded Fab Kills . | . . . Hacking | -11 -10 -10 --------- Run | Yrd Mat Min Machines Accessed 4 | . 4 . Terminals 4 | . 4 . Fabricators . | . . . Repair Stations . | . . . Recycling Units . | . . . Scanalyzers . | . . . Garrison Access . | . . . Total Hacks 9 | . 9 . Successful 5 | . 5 . Failed 4 | . 4 . Catastrophic 2 | . 2 . Database Lockouts . | . . . Manual 9 | . 9 . Terminals 9 | . 9 . Fabricators . | . . . Repair Stations . | . . . Recycling Units . | . . . Scanalyzers . | . . . Garrison Access . | . . . Terminal Hacks . | . . . Fabricator Hacks . | . . . Repair Station Hacks . | . . . Recycling Unit Hacks . | . . . Scanalyzer . | . . . Garrison Access Hacks . | . . . Unauthorized Hacks 5 | . 5 . Terminals 5 | . 5 . Track 1 | . 1 . Botnet 3 | . 3 . Operators 1 | . 1 . Fabricators . | . . . Repair Stations . | . . . Recycling Units . | . . . Scanalyzers . | . . . Garrison Access . | . . . Data Cores Recovered . | . . . Used . | . . . Hacking Detections 3 | . 3 . Full Trace Events . | . . . Feedback Events . | . . . Feedback Blocked . | . . . Robot Schematics Acquired . | . . . Robots Built . | . . . Authchips . | . . . Time . | . . . Total Robot Build Rating . | . . . Part Schematics Acquired . | . . . Parts Built . | . . . Authchips . | . . . Time . | . . . Total Part Build Rating . | . . . Parts Repaired . | . . . Time . | . . . Parts Recycled . | . . . Recycled Matter . | . . . Retrieved Matter . | . . . Retrieved Components . | . . . Parts Scanalyzed . | . . . Part Schematics Acquired . | . . . Parts Damaged . | . . . Bothacking | -11 -10 -10 ------------ Run | Yrd Mat Min Used RIF Installer . | . . . Robots Hacked . | . . . Non-combat . | . . . Combat . | . . . Robot Hacks Applied . | . . . Relay Couplers Released . | . . . Fabnet Peak Effective % . | . . . Robots Rewired . | . . . Allies Hacked . | . . . Hacks Repelled . | . . . Allies | -11 -10 -10 -------- Run | Yrd Mat Min Total Allies 1 | . 1 . Largest Group 1 | . 1 1 Highest-Rated Group 59 | . 59 59 Highest-Rated Ally 59 | . 59 59 Total Orders . | . . . Ally Attacks 29 | . 7 22 Total Damage 248 | . 240 8 Kills 4 | . 4 . Allies Corrupted . | . . . Allies Melted . | . . . Intel | -11 -10 -10 ------- Run | Yrd Mat Min Active Infowar (turns) 289 | 36 253 . Seismic 289 | 36 253 . Robot Analysis Total . | . . . Derelict Logs Recovered . | . . . Drone Launches . | . . . Drone Recoveries . | . . . Exploration | -11 -10 -10 ------------- Run | Yrd Mat Min Turns Passed 821 | 130 550 141 Spaces Moved 514 | 75 366 73 Core 15 | 15 . . Treads . | . . . Legs . | . . . Wheels 499 | 60 366 73 Hover . | . . . Flight . | . . . Fastest Speed 50 | 50 100 130 Average Speed 113 | 96 114 130 Slowest Speed 130 | 100 130 130 Overloaded Moves . | . . . Propulsion Burnouts . | . . . Robots Hopped . | . . . Potential Cave-ins . | . . . Cave-ins Triggered . | . . . Exploration Rate (%) 24 | 4 57 13 Regions Visited 2 Branch Regions 1 Pre-discovered Areas . | . . . Known Exits Taken . | . . . Unknown Exits Taken 2 | 1 1 . Scrap Searched . | . . . Spaces Dug . | . . . Terrain Destroyed 28 | . 28 . Melee . | . . . Projectile . | . . . AOE 28 | . 28 . Terrain Rammed . | . . . Walls Destroyed . | . . . Machines Disabled . | . . . Actions | -11 -10 -10 --------- Run | Yrd Mat Min Total 661 | 105 456 100 Wait 24 | 1 15 8 Move 512 | 74 365 73 Hop . | . . . Pick Up 26 | 7 19 . Fast Attach 8 | 7 1 . Attach 3 | . 3 . Detach 1 | . 1 . Swap 9 | . 6 3 Drop 15 | 1 13 1 Fire 63 | 15 33 15 Melee . | . . . Ram . | . . . Kick . | . . . Crush . | . . . Escape Stasis . | . . . Rewire . | . . . Trap . | . . . Miscellaneous . | . . . Route ------- -11/Scrapyard -10/Materials (discovered 4 exits: [*Mat x3] / [*Min]) -10/Mines (discovered 1 exit: [*Exi]) History --------- Turn | Location | Event 41 | -11/Scrapyard | Discovered new exit (range 15) 131 | -11/Scrapyard | Entered Materials 305 | -10/Materials | Discovered new exit (range 16) 306 | -10/Materials | Build established: Mutant 430 | -10/Materials | Discovered new exit (range 16) 601 | -10/Materials | Discovered new exit (range 15) 651 | -10/Materials | Discovered new exit (range 6) 681 | -10/Materials | Entered Mines 703 | -10/Mines | Met a Derelict bent on vengeance 708 | -10/Mines | Assembled infested the area 723 | -10/Mines | Discovered new exit (range 5) 760 | -10/Mines | Met 8R-AWN 777 | -10/Mines | Attacked by 8R-AWN 796 | -10/Mines | Core integrity fell below 50% 808 | -10/Mines | Core integrity fell below 20% 822 | -10/Mines | Core destroyed Last Messages --------------- 00802_ HV Slug penetrates Player 2. 00802_ HV Slug penetrates Earth. 00802_ HV Slug penetrates Player 2. 00802_ HV Slug penetrates Earth. 00804_ HV Slug penetrates Player 2. 00804_ Player 2 suffers critical hit (Destroy). 00804_ HV Slug penetrates Earth. 00804_ HV Slug penetrates Player 2. 00805_ R-06 Scavenger collects Terrain Scanner. 00805_ Player 2 attaches Aluminum Leg. 00806_ R-06 Scavenger collects Wheel. 00807_ HV Slug penetrates Player 2. 00807_ HV Slug penetrates Wall. 00809_ R-06 Scavenger collects Welding Torch. 00809_ HV Slug penetrates Player 2. 00813_ HV Slug penetrates Wall. 00813_ HV Slug penetrates Earth. 00813_ HV Slug penetrates Wall. 00815_ R-06 Scavenger collects EMP Blaster. 00816_ HV Slug penetrates Player 2. Map ----- +----------------------------------------------------+ | ?????????????????????????????????????????????????? | | ?????????????????????????????????????????????????? | | ?????????????????????????????????????????????????? | | ???????????????????????????????####??????????????? | | ??????????????????????????????# ##?????????????? | | ????????????????????????????## #?????????????? | | ???????????????????????????## ### ""??????? | | ???????????????????????????# ""??????? | | ??????????????????????????## ""??????? | | ??????????????????????##### #### ????? | | ??????????????????? ??# #???????????????? | | ??????????????????? #?# ## #???????????????? | | ???????????????????# ?# ##### #??????????????? | | ???????????????????? ?# #????# #?????????????? | | ???????????????????? ## %#????? #?????????????? | | ??????????????????### # #????? #????????????? | | ?????????????????## # # #????? #????????????? | | ???????????????### # #?????? #????????????? | | ??????????????? #? " #??????# #????????????? | | ???????????????# #?# ;; #???????# ????????????? | | ???????????????# #??#; ##???????# ???????????? | | ??????????????## #### ########? ???????????? | | ??????????????# ## @ #??????????????? | | ??????????????# r ####### #??????????????? | | ??????????????## ##??????????????????????? | | ???????????????####### g@#??????????????????????? | | ?????????????????????## #??????????????????????? | | ??????????????????????# ##??????????????????????? | | ??????????????????????## ###?????????????????????? | | ???????????????????????# ##????????????????????? | | ???????????????????????### #????????????????????? | | ????????????????????????## ##????????????????????? | | ????????????????????????# #?????????????????????? | | ????????????????????????# ##?????????????????????? | | ???????????????????????#< #??????????????????????? | | ???????????????????????####??????????????????????? | | ?????????????????????????????????????????????????? | | ?????????????????????????????????????????????????? | | | | | | | | | | | | | | | | | | | | | | | | | +----------------------------------------------------+ Best States ------------- Heat Dissipation 25 Energy Generation 10 Energy Capacity 125 Matter Stores 300 Matter Capacity 300 Sight Range 16 Terrain Scan Density 10 Armor Coverage 150 Evasion (%) 40 Recoil Reduction 1 Item Schematics ----------------- None Robot Schematics ------------------ None Fabricated ------------ Nothing Repaired ---------- Nothing Alien Tech Used ----------------- None Achievements -------------- None Challenges ------------ None Player 2 | -11 -10 -10 ---------- Run | Yrd Mat Min Slots Evolved . | . . . Power . | . . . Propulsion . | . . . Utility . | . . . Weapon . | . . . Parts Attached 11 | . 9 2 Parts Lost 5 | . . 5 Damage Taken 719 | . 146 573 Core 223 | . 23 200 Player 2/Cogmind (%) 86 | . 40 100 Absorbed by Shields . | . . . Damage Inflicted 248 | . 240 8 Player 2/Cogmind (%) 22 | . 26 32 Combat Hostiles Destroyed 2 | . 2 . Player 2/Cogmind (%) 33 | . 33 . Game ------ Seed DerelictCentriumCore Manual? 0 Play Time 00:09:12 Cumulative 290.7 hours Start 2025.06.22 @ 09:59:52 End 2025.06.22 @ 10:06:53 Sessions 1 Manual Loads 0 Difficulty Rogue Special Mode AFD2020/Player2 Game No. 261 Rogue 261 Adventurer 0 Explorer 0 Win Type - Total 2 Types 1/1/0/0/0/0/0/0/0/0 Lore% 76 Gallery% 80 Achievement% 72 Wizard Run 0 Options --------- Layout 1 ASCII 0 Keyboard 0 Movement Numpad Keybinds 0 Fullscreen 1 Font 24/Smallcaps Map View 50x35 Zoom Use 0% Tactical HUD 1 Map Filters NONE Filters NONE Steam 1 RUN: d522787a-0f59-4494-bb96-d49bb330c973